bitfinex-derivatives/quotes_BNBF0:USTF0_20250424
["timestamp","ask_amount","ask_price","bid_price","bid_amount"]
[1745475112673,0.28768414,606.01,604.34,0.59115894]
[1745475112966,0.28768414,606.01,604.35,0.59115894]
[1745475113171,0.28768414,606.01,604.36,0.59127844]
[1745475113474,1.54920409,606.01,604.33,1.129]
[1745475113775,1.54920409,606.01,604.34,0.59129982]
[1745475113974,1.54920409,606.01,604.35,0.59129982]
[1745475114175,1.54920409,606.01,604.36,0.59129982]
[1745475114375,1.54920409,606.01,604.37,0.59129982]
[1745475114571,1.54920409,606.01,604.38,0.59138258]
[1745475114770,1.54920409,606.01,604.39,0.59138258]
[1745475114977,1.54920409,606.01,604.4,0.59138258]
[1745475115176,1.54920409,606.01,604.41,0.59138258]
[1745475115377,1.26151995,605.96,604.42,0.59138258]
[1745475115680,1.26151995,605.96,604.43,0.59138258]
[1745475115876,1.26151995,605.96,604.44,0.59138258]
[1745475116077,1.26151995,605.96,604.45,0.59138258]
[1745475116380,1.26151995,605.96,604.46,0.59138258]
[1745475116579,1.26151995,605.96,604.33,1.129]
[1745475116774,1.26151995,605.96,604.34,0.59135436]
[1745475116977,1.26151995,605.96,604.35,0.59135436]
[1745475117177,1.26151995,605.96,604.36,0.59135436]
[1745475117379,0.28766869,605.95,604.37,0.59135436]
[1745475117573,0.28766869,605.95,604.38,0.59135436]
[1745475117773,0.28766869,605.95,604.39,0.59135436]
[1745475117977,0.28766869,605.95,604.4,0.59135436]
[1745475118177,0.28766869,605.95,604.41,0.59135436]
[1745475118377,0.28766869,605.95,604.42,0.59135436]
[1745475118578,0.28766869,605.95,604.43,0.59135436]
[1745475118776,0.28766869,605.95,604.44,0.59135436]
[1745475118978,0.28766869,605.95,604.45,0.59135436]
[1745475119179,0.28766869,605.95,604.46,0.59135436]
[1745475119375,0.28766869,605.95,604.47,0.59135436]
[1745475119577,0.28766869,605.95,604.48,0.59156959]
[1745475119777,0.28766869,605.95,604.49,0.59156959]
[1745475119977,0.28766869,605.95,604.33,1.129]
[1745475120284,1.26151995,606.12,604.34,0.59159439]
[1745475120478,1.26151995,606.12,604.35,0.89535883]
[1745475120683,1.26151995,606.12,604.36,0.59159439]
[1745475120884,1.26151995,606.12,604.37,0.59159439]
[1745475121082,1.26151995,606.12,604.38,0.59159439]
[1745475121281,0.28762232,606.11,604.39,0.59159439]
[1745475121587,0.28762232,606.11,604.4,0.59159439]
[1745475121886,0.28762232,606.11,604.41,0.59159439]
[1745475122086,0.28762232,606.11,604.42,0.59159439]
[1745475122284,0.28762232,606.11,604.43,0.59159439]
[1745475122489,0.28762232,606.11,604.44,0.59159439]
[1745475122690,0.28762232,606.11,604.45,0.59159439]
[1745475122892,0.28762232,606.11,604.46,0.59159439]
[1745475123191,1.26151995,606.12,604.47,0.59159439]
[1745475123391,0.28760212,606.1,604.48,0.59159439]
[1745475123690,0.28760212,606.1,604.49,0.59159439]
[1745475123991,0.28760212,606.1,604.5,0.59159439]
[1745475124192,0.28760212,606.1,604.51,0.59159439]
[1745475124385,0.28760212,606.1,604.52,0.59159439]
[1745475124584,0.28760212,606.1,604.53,0.59159439]
[1745475124790,0.28760212,606.1,604.54,0.59159439]
[1745475124989,0.28760212,606.1,604.37,0.28760212]
[1745475125193,0.28760212,606.1,604.38,0.59093827]
[1745475125391,1.26151995,605.9,604.39,0.59093827]
[1745475125586,1.26151995,605.9,604.4,0.59093827]
[1745475125890,1.26151995,605.9,604.41,0.59093827]
[1745475126091,1.26151995,605.9,604.42,0.59093827]
[1745475126392,1.26151995,605.9,604.43,0.59093827]
[1745475126586,1.26151995,605.9,604.44,0.59093827]
[1745475126790,1.26151995,605.9,604.45,0.59093827]
[1745475127091,1.26151995,605.9,604.46,0.59093827]
[1745475127287,1.26151995,605.9,604.47,0.59093827]
[1745475127486,0.28762945,605.89,604.48,0.59093827]
[1745475127686,0.28762945,605.89,604.49,0.59093827]
[1745475127890,0.28762945,605.89,604.5,0.59093827]
[1745475128191,0.28762945,605.89,604.51,0.59058997]
[1745475128392,0.28762945,605.89,604.52,0.59058997]
[1745475128592,0.28762945,605.89,604.45,1.054]
[1745475128797,0.28762945,605.89,604.46,0.59047326]
[1745475128993,0.28762945,605.89,604.47,0.59047326]
[1745475129192,1.26151995,606.0,604.48,0.59047326]
[1745475129393,1.26151995,606.0,604.45,1.054]
[1745475129394,1.26151995,606.0,604.49,0.59047326]
[1745475129594,1.26151995,606.0,604.5,0.59047326]
[1745475129795,1.26151995,606.0,604.51,0.59047326]
[1745475129994,1.26151995,606.0,604.52,0.59047326]
[1745475130195,1.26151995,606.0,604.53,0.59047326]
[1745475130495,0.28761044,605.99,604.45,1.054]
[1745475130695,0.28761044,605.99,604.46,0.5900149]
[1745475130891,0.28761044,605.99,604.47,0.5900149]
[1745475131094,0.28761044,605.99,604.48,0.5900149]
[1745475131290,0.28761044,605.99,604.49,0.5900149]
[1745475131491,0.28761044,605.99,604.5,0.5900149]
[1745475131791,0.28761044,605.99,604.51,0.5900149]
[1745475132099,1.26151995,606.0,604.52,0.5900149]
[1745475132295,1.26151995,606.0,603.86,1.04785832]
[1745475132492,1.26151995,606.0,603.87,0.89375859]
[1745475132692,1.26151995,606.0,603.88,0.59000598]
[1745475132892,1.26151995,606.0,603.89,0.89375859]
[1745475133095,1.26151995,606.0,603.9,0.89375859]
[1745475133292,1.26151995,606.0,603.91,0.89375859]
[1745475133493,1.26151995,606.0,603.92,0.89375859]
[1745475133494,0.28768414,605.99,603.92,0.89375859]
[1745475133698,0.28768414,605.99,603.93,0.89375859]
[1745475133898,0.28768414,605.99,603.94,0.89375859]
[1745475134199,0.28768414,605.99,603.95,0.89375859]
[1745475134394,0.28768414,605.99,603.9,0.28768414]
[1745475134395,1.26151995,605.82,603.96,0.89375859]
[1745475134602,1.26151995,605.82,603.97,0.89375859]
[1745475134798,1.26151995,605.82,603.98,0.89375859]
[1745475134993,1.26151995,605.82,603.99,0.89375859]
[1745475135298,1.26151995,605.82,604.0,2.13875859]
[1745475135598,1.26151995,605.82,604.01,0.8934353]
[1745475135798,1.26151995,605.82,604.02,0.8934353]
[1745475135998,1.26151995,605.82,604.03,0.8934353]
[1745475136198,1.26151995,605.82,604.04,0.8934353]
[1745475136398,0.2876889,605.81,604.05,0.8934353]
[1745475136594,1.54920885,605.81,604.06,0.8934353]
[1745475136798,1.54920885,605.81,604.07,0.8934353]
[1745475137000,1.54920885,605.81,604.08,0.8934353]
[1745475137201,1.54920885,605.81,604.09,0.8934353]
[1745475137498,1.54920885,605.81,604.1,0.8934353]
[1745475137694,1.54920885,605.81,604.11,0.58968269]
[1745475137894,1.54920885,605.81,604.12,0.89343307]
[1745475138201,1.26151995,605.81,604.13,0.89343307]
[1745475138500,1.26151995,605.81,604.14,0.89343307]
[1745475138696,1.26151995,605.81,604.15,0.89343307]
[1745475138897,1.26151995,605.81,604.16,0.89343307]
[1745475139193,1.26151995,606.06,604.17,0.89275703]
[1745475139397,0.28763659,605.96,604.18,0.89275466]
[1745475139594,0.28763659,605.96,604.19,0.89275466]
[1745475139800,1.26151995,606.06,604.2,0.89275466]
[1745475139998,1.26151995,606.06,604.21,0.89275466]
[1745475140199,1.26151995,606.06,604.22,0.89275466]
[1745475140500,1.26151995,606.06,604.23,0.89275466]
[1745475140696,0.28760093,606.05,604.24,0.89275466]
[1745475140896,0.28760093,606.05,604.25,0.58908622]
[1745475141098,1.26151995,606.06,604.26,0.89275466]
[1745475141299,1.26151995,606.45,604.27,0.89275466]
[1745475141494,1.26151995,606.45,604.28,0.89275466]
[1745475141798,1.26151995,606.45,604.29,0.89275466]
[1745475141996,1.26151995,606.45,604.3,0.89275466]
[1745475142199,1.26151995,606.45,604.31,0.89275466]
[1745475142395,0.28754508,606.44,604.32,0.58908622]
[1745475142594,0.28754508,606.44,604.33,0.89275647]
[1745475142793,0.28754508,606.44,604.34,0.89275647]
[1745475142996,0.28754508,606.44,604.35,0.89275647]
[1745475143200,0.28754508,606.44,604.36,0.89275647]
[1745475143501,1.26151995,606.35,604.37,0.89275647]
[1745475143694,1.26151995,606.35,604.38,0.89275647]
[1745475143897,1.26151995,606.35,604.39,0.58908622]
[1745475144093,1.26151995,606.35,604.4,0.89275647]
[1745475144296,1.26151995,606.35,604.41,0.89275647]
[1745475144500,1.26151995,606.35,604.42,0.89275647]
[1745475144800,1.26151995,606.35,604.43,0.89275647]
[1745475144997,1.26151995,606.35,604.44,0.89275647]
[1745475145197,1.26151995,606.35,604.45,0.89275647]
[1745475145395,0.28753914,606.34,604.46,0.89275647]
[1745475145593,0.28753914,606.34,604.47,0.89275647]
[1745475145795,1.26151995,606.29,604.48,0.58908622]
[1745475145996,1.26151995,606.29,604.49,0.58908622]
[1745475146199,1.26151995,606.29,604.5,0.58908622]
[1745475146399,1.26151995,606.29,604.51,0.58908622]
[1745475146596,1.26151995,606.29,604.52,0.58908622]
[1745475146802,1.26151995,606.29,604.53,0.58810098]
[1745475146997,1.26151995,606.29,604.54,0.58810098]
[1745475147203,1.26151995,606.29,604.55,0.58810098]
[1745475147403,0.28753439,606.28,604.56,0.58810098]
[1745475147598,0.28753439,606.28,604.57,0.58810098]
[1745475147798,0.28753439,606.28,604.58,0.58810098]
[1745475148003,0.28753439,606.28,604.59,0.58810098]
[1745475148201,0.28753439,606.28,604.41,0.28753558]
[1745475148405,0.28753439,606.28,604.42,0.58806899]
[1745475148603,0.28753439,606.28,604.41,0.28753558]
[1745475148604,0.28753439,606.28,604.43,0.58802793]
[1745475148805,0.28753439,606.28,604.44,0.58802793]
[1745475149104,0.28753439,606.28,604.45,0.58802793]
[1745475149300,0.28753439,606.28,604.41,0.28753558]
[1745475149301,0.28753439,606.28,604.46,0.58802793]
[1745475149506,0.28753439,606.28,604.47,0.58802793]
[1745475149800,0.28753439,606.28,604.48,0.58802793]
[1745475149998,0.28753439,606.28,604.49,0.58802793]
[1745475150202,1.26151995,606.37,604.5,0.58802793]
[1745475150406,1.26151995,606.37,604.51,0.58802793]
[1745475150601,0.28753083,606.27,604.52,0.58802793]
[1745475150800,1.26151995,606.37,604.53,0.58802793]
[1745475151100,1.26151995,606.37,604.54,0.58802793]
[1745475151400,1.26151995,606.37,604.55,0.58802793]
[1745475151602,1.26151995,606.31,604.56,0.58802793]
[1745475151904,1.26151995,606.31,604.57,0.58802793]
[1745475152103,0.28752964,606.3,604.58,0.58802793]
[1745475152304,0.28752964,606.3,604.59,0.58807072]
[1745475152502,0.28752964,606.3,604.6,0.58807072]
[1745475152700,0.28752964,606.3,604.44,0.28753083]
[1745475152907,0.28752964,606.3,604.45,0.58817049]
[1745475153108,1.26151995,606.31,604.46,0.58817049]
[1745475153300,1.26151995,606.31,604.47,0.58817049]
[1745475153504,0.28754271,606.29,604.48,0.58817049]
[1745475153706,0.28754271,606.29,604.49,0.58817049]
[1745475153906,0.28754271,606.29,604.5,0.58817049]
[1745475154106,0.28754271,606.29,604.51,0.58817049]
[1745475154408,0.28754271,606.29,604.52,0.58817049]
[1745475154703,1.54906266,606.29,604.53,0.58817049]
[1745475154914,1.54906266,606.29,604.54,0.58817049]
[1745475155101,1.54906266,606.29,604.55,0.58817049]
[1745475155307,1.54906266,606.29,604.56,0.58817049]
[1745475155505,1.54906266,606.29,604.57,0.58817049]
[1745475155707,1.54906266,606.29,604.58,0.58817049]
[1745475155907,1.54906266,606.29,604.59,0.58817049]
[1745475156104,1.26151995,606.29,604.6,0.58817049]
[1745475156307,1.26151995,606.29,604.61,1.59817049]
[1745475156508,1.26151995,606.29,604.62,0.58817049]
[1745475157409,0.28752489,606.28,604.62,0.58817049]
[1745475157806,0.28752489,606.28,604.61,1.01]
[1745475158109,0.28752489,606.28,604.62,0.58885453]
[1745475158311,0.28752489,606.28,604.63,0.58885453]
[1745475158511,0.28752489,606.28,604.64,0.58885453]
[1745475158712,0.28752489,606.28,604.61,1.01]
[1745475158913,0.28752489,606.28,604.62,0.58894647]
[1745475159112,1.26151995,606.29,604.61,1.01]
[1745475159308,0.28753439,606.27,604.61,1.01]
[1745475159613,1.26151995,606.21,604.61,1.01]
[1745475162315,1.26151995,606.21,604.62,0.5894867]
[1745475162517,0.28754508,606.2,604.61,1.01]
[1745475162711,0.28754508,606.2,604.62,0.58950298]
[1745475162911,0.28754508,606.2,604.61,1.01]
[1745475165213,1.26151995,606.36,604.61,1.01]
[1745475166313,0.28754865,606.35,604.61,1.01]
[1745475168020,1.26151995,606.03,604.61,1.01]
[1745475169415,0.28758786,606.02,604.61,1.01]
[1745475170821,1.26151995,605.9,604.61,1.01]
[1745475171317,0.28760331,605.89,604.61,1.01]
[1745475172522,0.28760331,605.89,604.62,1.081]
[1745475174118,1.26151995,605.94,604.62,1.081]
[1745475175424,0.28759736,605.93,604.62,1.081]
[1745475177125,1.26151995,605.94,604.62,1.081]
[1745475177322,1.26151995,606.14,604.63,1.02]
[1745475178425,0.28757241,606.13,604.63,1.02]
[1745475179021,0.28757241,606.13,604.64,0.591263]
[1745475179226,0.28757241,606.13,604.65,0.591263]
[1745475179426,1.26151995,606.09,604.66,0.591263]
[1745475179618,1.26151995,606.09,604.67,0.591263]
[1745475179824,1.26151995,606.09,604.68,0.591263]
[1745475180120,1.26151995,606.09,604.63,1.02]
[1745475180321,1.26151995,606.09,604.64,0.59113008]
[1745475180518,1.26151995,606.09,604.65,0.59113008]
[1745475180723,1.26151995,606.09,604.66,0.59113008]
[1745475181019,1.26151995,606.09,604.67,0.59113008]
[1745475181224,1.26151995,606.09,604.68,0.59113008]
[1745475181425,1.26151995,606.09,604.69,0.59113008]
[1745475181619,1.26151995,606.09,604.7,0.59113008]
[1745475181825,0.28757241,606.13,604.71,0.59113008]
[1745475182024,0.28757241,606.13,604.72,0.59113008]
[1745475182319,0.28757241,606.13,604.63,1.02]
[1745475182524,0.28757241,606.13,604.64,0.5911086]
[1745475182721,0.28757241,606.13,604.65,0.5911086]
[1745475182925,0.28757241,606.13,604.66,0.5911086]
[1745475183222,1.26151995,606.24,604.67,0.5911086]
[1745475183423,1.26151995,606.24,604.68,0.5911086]
[1745475183726,1.26151995,606.23,604.69,0.59114955]
[1745475184027,1.26151995,606.23,604.7,0.59114955]
[1745475184227,1.26151995,606.23,604.71,0.59114955]
[1745475184426,0.28753677,606.22,604.63,1.02]
[1745475184627,0.28753677,606.22,604.64,0.59117472]
[1745475184827,0.28753677,606.22,604.65,0.59117472]
[1745475185029,0.28753677,606.22,604.66,0.59117472]
[1745475185324,0.28753677,606.22,604.67,0.59115332]
[1745475185528,0.28753677,606.22,604.68,0.59115332]
[1745475185829,1.26151995,606.01,604.69,0.59115332]
[1745475186028,1.26151995,606.01,604.7,0.59115332]
[1745475186328,1.26151995,606.01,604.71,0.59115332]
[1745475186528,1.26151995,606.01,604.72,0.59115332]
[1745475186728,1.26151995,606.01,604.63,1.02]
[1745475186929,1.26151995,606.01,604.64,0.59117626]
[1745475187124,1.26151995,606.01,604.65,0.59117626]
[1745475187324,0.28757003,606.0,604.66,0.59117626]
[1745475187526,0.28757003,606.0,604.67,0.59117626]
[1745475187726,0.28757003,606.0,604.68,0.59117626]
[1745475187924,0.28757003,606.0,604.63,1.02]
[1745475187925,0.28757003,606.0,604.69,0.59117626]
[1745475188129,0.28757003,606.0,604.7,0.59117626]
[1745475188424,0.28757003,606.0,604.71,0.59117626]
[1745475188629,0.28757003,606.0,604.72,0.59117626]
[1745475188825,0.28757003,606.0,604.73,0.59117626]
[1745475189023,0.28757003,606.0,604.63,1.02]
[1745475189228,1.26151995,606.05,604.64,0.57656566]
[1745475189423,1.26151995,606.05,604.63,1.02]
[1745475189628,0.28756647,605.99,604.63,1.02]
[1745475191334,1.26151995,605.86,604.63,1.02]
[1745475191835,1.26151995,605.86,604.64,1.514]
[1745475194034,0.28758786,605.9,604.64,1.514]
[1745475195234,1.26151995,606.04,604.64,1.514]
[1745475195434,0.28756647,605.9,604.64,1.514]
[1745475195729,1.26151995,606.04,604.64,1.514]
[1745475196430,1.26151995,606.04,604.65,1.358]
[1745475196630,0.28756172,606.03,604.65,1.358]
[1745475198131,1.26151995,606.04,604.65,1.358]
[1745475199437,0.28755578,606.03,604.65,1.358]
[1745475201138,1.26151995,606.04,604.65,1.358]
[1745475201439,1.26151995,606.04,604.66,0.59099876]
[1745475201637,1.26151995,606.04,604.67,0.59099876]
[1745475201834,1.26151995,605.85,604.68,0.59099876]
[1745475202038,1.26151995,605.85,604.69,0.59099876]
[1745475202342,1.26151995,605.85,604.7,0.59099876]
[1745475202537,1.26151995,605.85,604.71,0.59099876]
[1745475202740,1.26151995,605.85,604.72,0.59099876]
[1745475202938,1.26151995,605.85,604.73,0.59099876]
[1745475203139,1.26151995,605.85,604.74,0.59099876]
[1745475203340,1.26151995,605.85,604.75,0.59099876]
[1745475203537,1.26151995,605.85,604.7,1.424]
[1745475203538,1.26151995,605.85,604.76,0.59099876]
[1745475203738,1.26151995,605.85,604.77,0.59099876]
[1745475203937,1.26151995,605.85,604.78,0.59099876]
[1745475204142,1.26151995,605.85,604.79,0.59099876]
[1745475204343,1.26151995,605.85,604.8,0.59099876]
[1745475204543,1.26151995,605.85,604.81,0.59099876]
[1745475204743,1.26151995,605.86,604.82,0.59099876]
[1745475204943,1.26151995,605.86,604.7,1.424]
[1745475205140,1.26151995,605.86,604.71,0.59098775]
[1745475205343,1.26151995,605.86,604.72,0.59098775]
[1745475205540,1.26151995,605.86,604.73,0.59098775]
[1745475205741,1.26151995,605.86,604.74,0.59098775]
[1745475206040,1.26151995,605.86,604.75,0.59098775]
[1745475206243,1.26151995,605.86,604.76,0.59098775]
[1745475206445,1.26151995,605.86,604.77,0.59098775]
[1745475206946,1.26151995,605.86,604.78,0.59101796]
[1745475207143,1.26151995,605.86,604.79,0.59101796]
[1745475207342,1.26151995,605.86,604.8,0.59101796]
[1745475207542,1.26151995,605.96,604.76,1.11]
[1745475207745,1.26151995,605.96,604.77,0.59104581]
[1745475208042,1.26151995,605.96,604.78,0.59104581]
[1745475208245,1.26151995,605.96,604.79,0.59104581]
[1745475208448,1.26151995,605.96,604.8,0.59104581]
[1745475208645,1.26151995,605.96,604.76,1.11]
[1745475208839,1.26151995,605.96,604.77,0.59121832]
[1745475209043,1.26151995,605.96,604.78,0.59121832]
[1745475209246,1.26151995,605.96,604.79,0.59121832]
[1745475209444,1.26151995,605.96,604.8,0.59121832]
[1745475209643,1.26151995,605.96,604.76,1.11]
[1745475209849,1.26151995,605.96,604.77,0.5913574]
[1745475210048,1.26151995,605.96,604.78,0.5913574]
[1745475210249,1.26151995,605.96,604.79,0.5913574]
[1745475210446,1.26151995,605.96,604.8,0.5913574]
[1745475210644,1.26151995,605.96,604.76,1.11]
[1745475210847,1.26151995,605.91,604.77,0.59135223]
[1745475211048,1.26151995,605.91,604.78,0.59135223]
[1745475211248,1.26151995,605.91,604.79,0.59135223]
[1745475211445,1.26151995,605.91,604.76,1.11]
[1745475211649,1.26151995,605.91,604.77,0.59134501]
[1745475211948,1.26151995,605.91,604.78,0.59134501]
[1745475212149,1.26151995,605.91,604.79,0.59134501]
[1745475212445,1.26151995,605.91,604.8,0.59134501]
[1745475212648,1.26151995,605.91,604.76,1.11]
[1745475212846,1.26151995,605.91,604.8,1.299]
[1745475213753,1.26151995,605.93,604.8,1.299]
[1745475216154,1.26151995,605.79,604.8,1.299]
[1745475216853,1.26151995,605.79,604.81,0.59136337]
[1745475217054,1.26151995,605.79,604.8,1.299]
[1745475218255,0.28755696,605.98,604.8,1.299]
[1745475219154,1.26151995,606.03,604.8,1.299]
[1745475220455,0.28752964,606.02,604.8,1.299]
[1745475222151,1.26151995,606.04,604.8,1.299]
[1745475222557,0.28752845,606.01,604.8,1.299]
[1745475224659,0.28752845,606.01,604.8,2.443]
[1745475225359,1.26151995,606.05,604.8,3.707]
[1745475225563,0.28753677,606.0,604.8,3.707]
[1745475227261,0.28753677,606.0,604.8,5.018]
[1745475227665,0.28753677,606.0,604.6,0.28753677]
[1745475227866,0.28753677,606.0,604.61,0.59154047]
[1745475228061,0.28753677,606.0,604.62,0.59154047]
[1745475228260,1.26151995,606.05,604.63,0.59154047]
[1745475228463,1.26151995,606.05,603.6,0.69410136]
[1745475228464,1.26151995,606.0,604.64,0.59154047]
[1745475228663,0.28755815,605.99,604.65,0.59154047]
[1745475228865,0.28755815,605.99,604.66,0.59154047]
[1745475229067,0.28755815,605.99,604.67,0.59154047]
[1745475229270,0.28755815,605.99,604.68,0.59154047]
[1745475229567,0.28755815,605.99,604.69,0.59154047]
[1745475229762,0.28755815,605.99,604.7,0.59154047]
[1745475229964,0.28755815,605.99,604.71,0.59154047]
[1745475230162,0.28755815,605.99,604.72,0.59162572]
[1745475230362,0.28755815,605.99,604.73,0.59162572]
[1745475230667,0.28755815,605.99,604.6,0.28755815]
[1745475230668,0.28755815,605.99,604.74,0.59162572]
[1745475230865,1.26151995,605.96,604.75,0.59162572]
[1745475231062,1.26151995,605.96,604.76,0.59162572]
[1745475231265,1.26151995,605.96,604.77,0.59162572]
[1745475231463,1.26151995,605.96,604.78,0.59162572]
[1745475231663,0.2875534,605.95,604.6,0.2875534]
[1745475232169,0.2875534,605.95,604.61,0.59166203]
[1745475232469,0.2875534,605.95,604.62,0.59166203]
[1745475232670,0.2875534,605.95,604.63,0.59166203]
[1745475232967,0.2875534,605.95,604.64,0.59166203]
[1745475233167,0.2875534,605.95,604.65,0.5918843]
[1745475233366,0.2875534,605.95,604.66,0.5918843]
[1745475233568,0.2875534,605.95,604.6,0.2875534]
[1745475233569,0.2875534,605.95,604.67,0.5918843]
[1745475233769,0.2875534,605.95,604.68,0.5918843]
[1745475233968,0.2875534,605.95,604.69,0.5918843]
[1745475234169,0.2875534,605.95,604.7,0.5918843]
[1745475234365,0.2875534,605.95,604.71,0.5918843]
[1745475234568,0.2875534,605.95,604.71,1.9978843]
[1745475234770,0.2875534,605.95,604.72,1.7348843]
[1745475234968,0.2875534,605.95,604.73,0.5918843]
[1745475237072,1.26151995,606.06,604.73,0.5918843]
[1745475237371,0.2875534,605.94,604.73,0.5918843]
[1745475237672,1.26151995,606.06,604.73,0.5918843]
[1745475238476,0.2875534,606.05,604.73,0.5918843]
[1745475240181,1.26151995,606.06,604.73,0.5918843]
[1745475240882,1.26151995,606.03,604.73,0.5918843]
[1745475241077,1.26151995,606.03,604.74,0.5924869]
[1745475241275,1.26151995,606.03,604.75,0.5924869]
[1745475241483,0.28755696,606.02,604.76,0.5924869]
[1745475241782,0.28755696,606.02,604.77,0.5924869]
[1745475241977,0.28755696,606.02,604.78,0.5924869]
[1745475242176,0.28755696,606.02,604.72,1.143]
[1745475242375,0.28755696,606.02,604.73,0.59246788]
[1745475242580,0.28755696,606.02,604.74,0.59246788]
[1745475242781,0.28755696,606.02,604.75,0.59246788]
[1745475243077,1.26151995,606.03,604.76,0.59246788]
[1745475243281,1.26151995,605.94,604.77,0.59246788]
[1745475243477,1.26151995,605.94,604.78,0.59246788]
[1745475243682,1.26151995,605.94,604.72,1.143]
[1745475243877,1.26151995,605.94,604.73,0.59245588]
[1745475244080,1.26151995,605.94,604.74,0.59245588]
[1745475244282,1.26151995,605.94,604.75,0.59245588]
[1745475244484,0.28757716,605.93,604.76,0.59245588]
[1745475244783,0.28757716,605.93,604.77,0.59245588]
[1745475244983,0.28757716,605.93,604.78,0.59245588]
[1745475245185,0.28757716,605.93,604.79,0.59245588]
[1745475245380,0.28757716,605.93,604.8,0.59245588]
[1745475245581,0.28757716,605.93,604.81,0.59245588]
[1745475245779,0.28757716,605.93,604.72,1.143]
[1745475245978,0.28757716,605.93,604.73,0.59235212]
[1745475246180,1.26151995,605.94,604.74,0.59235212]
[1745475246381,1.26151995,605.94,604.75,0.59235212]
[1745475246579,1.26151995,605.94,604.76,0.59235212]
[1745475246778,1.26151995,605.94,604.77,0.59235212]
[1745475246981,1.26151995,605.94,604.78,0.59235212]
[1745475247179,1.26151995,605.94,604.79,0.59235212]
[1745475247384,0.28757241,605.93,604.8,0.59235212]
[1745475247584,0.28757241,605.93,604.72,1.143]
[1745475247784,0.28757241,605.93,604.73,0.59236762]
[1745475248086,0.28757241,605.93,604.74,0.59236982]
[1745475248385,0.28757241,605.93,604.75,0.59236982]
[1745475248587,0.28757241,605.93,604.76,0.59236982]
[1745475248782,0.28757241,605.93,604.77,0.59236982]
[1745475248988,0.28757241,605.93,604.78,0.59236982]
[1745475249188,1.26151995,605.94,604.79,0.59236982]
[1745475249386,1.26151995,605.94,604.8,0.59236982]
[1745475249587,1.26151995,605.94,604.81,0.59236982]
[1745475249784,1.26151995,605.94,604.82,0.59236982]
[1745475250084,1.26151995,605.78,604.83,0.59236982]
[1745475250287,1.26151995,605.78,604.84,0.59236982]
[1745475250481,1.26151995,605.78,604.85,0.59236982]
[1745475250683,1.26151995,605.78,604.72,1.143]
[1745475250887,1.26151995,605.78,604.73,0.59236208]
[1745475251089,1.26151995,605.78,604.74,0.59236208]
[1745475251289,1.26151995,605.78,604.75,0.59236208]
[1745475251491,1.26151995,605.78,604.76,0.59236208]
[1745475251685,1.26151995,605.78,604.77,0.59236208]
[1745475251889,1.26151995,605.78,604.78,0.59236208]
[1745475252090,1.26151995,605.78,604.79,0.59236208]
[1745475252390,1.26151995,605.78,604.8,0.59236208]
[1745475252686,1.26151995,605.89,604.81,0.59236208]
[1745475252885,1.26151995,605.89,604.82,0.59236208]
[1745475253089,1.26151995,605.89,604.83,0.59236208]
[1745475253289,1.26151995,605.89,604.84,0.59236208]
[1745475253490,1.26151995,605.89,604.85,0.59236208]
[1745475253687,1.26151995,605.89,604.74,1.172]
[1745475253992,1.26151995,605.89,604.75,0.59234509]
[1745475254186,1.26151995,605.89,604.76,0.59234509]
[1745475254490,1.26151995,605.89,604.77,0.59234509]
[1745475254687,1.26151995,605.89,604.78,0.59234509]
[1745475254886,1.26151995,605.92,604.79,0.59234509]
[1745475255086,1.26151995,605.92,604.8,0.59234509]
[1745475255292,1.26151995,605.92,604.81,0.59234509]
[1745475255494,1.26151995,605.92,604.82,0.59234509]
[1745475255687,1.26151995,605.92,604.83,0.59234509]
[1745475255991,1.26151995,605.92,604.74,1.172]
[1745475256193,1.26151995,605.92,604.75,0.59238001]
[1745475256389,1.26151995,605.92,604.76,0.59238001]
[1745475256587,1.26151995,605.92,604.77,0.59238001]
[1745475256790,1.26151995,605.92,604.78,0.59238001]
[1745475256987,1.26151995,605.95,604.79,0.59238001]
[1745475257289,1.26151995,605.95,604.8,0.59238001]
[1745475257487,1.26151995,605.95,604.81,0.59238001]
[1745475257693,1.26151995,605.95,604.82,0.59238001]
[1745475257893,1.26151995,605.95,604.83,0.59238001]
[1745475258095,1.26151995,605.95,604.8,1.536]
[1745475258294,1.26151995,605.95,604.81,0.59238761]
[1745475258493,1.26151995,605.95,604.82,0.59238761]
[1745475258693,1.26151995,605.95,604.83,0.59238761]
[1745475258894,1.26151995,605.95,604.84,0.59238761]
[1745475259091,1.26151995,605.95,604.8,1.536]
[1745475259288,1.26151995,605.95,604.81,0.59236254]
[1745475259494,1.26151995,605.95,604.82,0.59236254]
[1745475259792,0.28753439,605.98,604.83,0.59236254]
[1745475259996,0.28753439,605.98,604.84,0.59236254]
[1745475260196,0.28753439,605.98,604.8,1.536]
[1745475260397,0.28753439,605.98,604.81,0.59236533]
[1745475260596,0.28753439,605.98,604.82,0.59236533]
[1745475260798,0.28753439,605.98,604.83,0.59236533]
[1745475261096,0.28753439,605.98,604.8,1.536]
[1745475261097,0.28753439,605.98,604.84,0.59236335]